fUST/lending_fUST_20250408
["ID","MTS","AMOUNT","RATE_DAILY","PERIOD"]
[357501884,1744092640535,-500.0,0.0001988,2]
[357501886,1744092640546,-500.0,0.0001988,2]
[357501887,1744092640555,-500.0,0.0001988,2]
[357501888,1744092640565,-505.17842651,0.0001988,2]
[357501889,1744092640574,-500.0,0.0001988,2]
[357501890,1744092640584,-500.0,0.0001988,2]
[357501891,1744092640594,-500.0,0.0001988,2]
[357501892,1744092640604,-500.0,0.0001988,2]
[357501893,1744092640613,-500.0,0.0001988,2]
[357501894,1744092640623,-500.0,0.0001988,2]
[357501895,1744092640632,-521.89493998,0.0001988,2]
[357501896,1744092640641,-500.0,0.0001988,2]
[357501897,1744092640651,-500.0,0.0001988,2]
[357501898,1744092640661,-252.15581858,0.0001988,2]
[357501899,1744092640671,-541.25340357,0.0001988,2]
[357501900,1744092640681,-539.97383627,0.0001988,2]
[357501901,1744092640691,-533.76867426,0.0001988,2]
[357501902,1744092640701,-500.0,0.0001988,2]
[357501903,1744092640710,-512.88704285,0.0001988,2]
[357501904,1744092640720,-366.3281992,0.0001988,2]
[357501905,1744092640729,-500.0,0.0001988,2]
[357501906,1744092640739,-406.9612752,0.0001988,2]
[357501907,1744092640749,-519.39188098,0.0001988,2]
[357501908,1744092640758,-180.25533994,0.0001988,2]
[357501909,1744092640768,-500.0,0.0001988,2]
[357501910,1744092640778,-500.0,0.0001988,2]
[357501911,1744092640787,-500.0,0.0001988,2]
[357501912,1744092640797,-500.0,0.0001988,2]
[357501913,1744092640806,-525.75097543,0.0001988,2]
[357501914,1744092640816,-500.0,0.0001988,2]
[357501915,1744092640826,-500.0,0.0001988,2]
[357501916,1744092640836,-533.7428999,0.0001988,2]
[357501917,1744092640846,-646.00082451,0.0001988,2]
[357501918,1744092640855,-500.0,0.0001988,2]
[357501919,1744092640865,-269.39347149,0.0001988,2]
[357501920,1744092640874,-516.77860191,0.0001988,2]
[357501921,1744092640884,-500.0,0.0001988,2]
[357501922,1744092640895,-500.0,0.0001988,2]
[357501923,1744092640905,-505.84821209,0.0001988,2]
[357501924,1744092640915,-507.65118021,0.0001988,2]
[357501925,1744092640924,-571.13431813,0.0001988,2]
[357501926,1744092640933,-504.6129757,0.0001988,2]
[357501927,1744092640943,-517.21850036,0.0001988,2]
[357501928,1744092640953,-502.36310943,0.0001988,2]
[357501929,1744092640962,-500.0,0.0001988,2]
[357501930,1744092640971,-500.0,0.0001988,2]
[357501931,1744092640980,-473.54652087,0.0001988,2]
[357501932,1744092640989,-514.01224457,0.0001988,2]
[357501933,1744092640999,-510.45406937,0.0001988,2]
[357501934,1744092641009,-500.0,0.0001988,2]
[357501935,1744092641019,-500.0,0.0001988,2]
[357501936,1744092641028,-500.0,0.0001988,2]
[357501937,1744092641037,-500.0,0.0001988,2]
[357501938,1744092641047,-531.96485381,0.0001988,2]
[357501939,1744092641057,-500.0,0.0001988,2]
[357501940,1744092641066,-512.75861311,0.0001988,2]
[357501941,1744092641076,-500.0,0.0001988,2]
[357501942,1744092641085,-500.0,0.0001988,2]
[357501943,1744092641094,-500.0,0.0001988,2]
[357501944,1744092641104,-500.0,0.0001988,2]
[357501945,1744092641113,-500.0,0.00019881,2]
[357501946,1744092641122,-500.0,0.00019881,2]
[357501947,1744092641132,-500.0,0.00019881,2]
[357501948,1744092641141,-500.0,0.00019881,2]
[357501949,1744092641150,-500.0,0.00019881,2]
[357501950,1744092641160,-296.00933418,0.00019881,2]
[357501951,1744092641169,-500.0,0.00019881,2]
[357501952,1744092641179,-1056.16,0.00020053,2]
[357501953,1744092641188,-500.0,0.00020053,2]
[357501954,1744092641198,-420.65693621,0.00020053,2]
[357501955,1744092641207,-500.0,0.00020054,2]
[357501956,1744092641216,-500.0,0.00020054,2]
[357501957,1744092641226,-500.0,0.00020054,2]
[357501958,1744092641236,-1113.32,0.00020054,2]
[357501959,1744092641245,-500.0,0.00020054,2]
[357501960,1744092641255,-500.0,0.00020054,2]
[357501961,1744092641265,-500.0,0.00020054,2]
[357501962,1744092641275,-500.0,0.00020054,2]
[357501963,1744092641284,-530.02,0.00020054,2]
[357501964,1744092641293,-500.0,0.00020054,2]
[357501965,1744092641303,-500.0,0.00020054,2]
[357501966,1744092641312,-500.0,0.00020054,2]
[357501967,1744092641322,-500.0,0.00020054,2]
[357501968,1744092641331,-500.0,0.00020054,2]
[357501969,1744092641341,-500.0,0.00020054,2]
[357501970,1744092641351,-500.0,0.00020054,2]
[357501971,1744092641360,-507.65466449,0.00020055,2]
[357501972,1744092641369,-500.0,0.00020055,2]
[357501973,1744092641378,-423.92753267,0.00020055,2]
[357501974,1744092641387,-500.0,0.00020055,2]
[357501975,1744092641397,-500.0,0.00020055,2]
[357501976,1744092641406,-500.0,0.00020055,2]
[357501977,1744092641415,-500.0,0.00020055,2]
[357501978,1744092641424,-500.0,0.00020055,2]
[357501979,1744092641434,-500.0,0.00020055,2]
[357501980,1744092641445,-210.3861934,0.00020055,2]
[357501981,1744092641455,-500.0,0.00020055,2]
[357501982,1744092641464,-500.0,0.00020055,2]
[357501983,1744092641473,-500.0,0.00020055,2]
[357501984,1744092641483,-500.0,0.00020055,2]
[357501985,1744092641493,-231.46438945,0.00020055,2]
[357501986,1744092641505,-500.0,0.00020055,2]
[357501987,1744092641515,-500.0,0.00020055,2]
[357501988,1744092641524,-500.0,0.00020055,2]
[357501989,1744092641533,-500.0,0.00020055,2]
[357501990,1744092641543,-500.0,0.00020055,2]
[357501991,1744092641552,-500.0,0.00020055,2]
[357501992,1744092641561,-500.0,0.00020055,2]
[357501993,1744092641571,-500.0,0.00020055,2]
[357501994,1744092641582,-517.76336856,0.00020055,2]
[357501995,1744092641592,-635.17,0.00020055,2]
[357501996,1744092641602,-500.0,0.00020055,2]
[357501997,1744092641612,-500.0,0.00020055,2]
[357501998,1744092641621,-304.94980465,0.00020055,2]
[357501999,1744092641631,-500.0,0.00020055,2]
[357502000,1744092641641,-500.0,0.00020055,2]
[357502001,1744092641650,-500.0,0.00020055,2]
[357502002,1744092641660,-1511.11,0.00020055,2]
[357502003,1744092641670,-500.0,0.00020055,2]
[357502004,1744092641680,-500.0,0.00020055,2]
[357502005,1744092641689,-500.0,0.00020055,2]
[357502006,1744092641699,-500.0,0.00020055,2]
[357502007,1744092641708,-500.0,0.00020055,2]
[357502008,1744092641717,-421.83926234,0.00020055,2]
[357502009,1744092641727,-500.0,0.00020055,2]
[357502010,1744092641739,-500.0,0.00020055,2]
[357502011,1744092641748,-500.0,0.00020055,2]
[357502012,1744092641758,-500.0,0.00020055,2]
[357502013,1744092641767,-500.0,0.00020055,2]
[357502014,1744092641777,-500.0,0.00020153,2]
[357502015,1744092641787,-500.0,0.00020153,2]
[357502016,1744092641797,-500.0,0.00020153,2]
[357502017,1744092641806,-500.0,0.00020153,2]
[357502018,1744092641818,-500.0,0.00020153,2]
[357502019,1744092641827,-500.0,0.00020153,2]
[357502020,1744092641837,-500.0,0.00020153,2]
[357502021,1744092641846,-500.0,0.00020153,2]
[357502022,1744092641856,-500.0,0.00020153,2]
[357502023,1744092641865,-500.0,0.00020153,2]
[357502024,1744092641874,-500.0,0.00020153,2]
[357502025,1744092641884,-500.0,0.00020153,2]
[357502026,1744092641893,-500.0,0.00020153,2]
[357502027,1744092641903,-199.93989761,0.00020154,2]
[357502028,1744092641912,-500.0,0.00020154,2]
[357502029,1744092641922,-500.0,0.00020154,2]
[357502030,1744092641931,-740.4,0.00020154,2]
[357502031,1744092641940,-567.25418416,0.00020154,2]
[357502032,1744092641950,-500.0,0.00020154,2]
[357502033,1744092641960,-500.0,0.00020154,2]
[357502034,1744092641970,-500.0,0.00020154,2]
[357502035,1744092641979,-1056.16,0.00020327,2]
[357502036,1744092641990,-500.0,0.00020327,2]
[357502037,1744092642000,-500.0,0.00020328,2]
[357502038,1744092642010,-500.0,0.00020328,2]
[357502039,1744092642020,-285.81829881,0.00020328,2]
[357502040,1744092642029,-1113.32,0.00020328,2]
[357502041,1744092642039,-500.0,0.00020328,2]
[357502042,1744092642049,-500.0,0.00020328,2]
[357502043,1744092642059,-500.0,0.00020328,2]
[357502044,1744092642069,-500.0,0.00020328,2]
[357502045,1744092642079,-530.02,0.00020328,2]
[357502046,1744092642090,-500.0,0.00020328,2]
[357502047,1744092642099,-500.0,0.00020328,2]
[357502048,1744092642109,-500.0,0.00020328,2]
[357502049,1744092642119,-500.0,0.00020328,2]
[357502050,1744092642128,-500.0,0.00020328,2]
[357502051,1744092642138,-500.0,0.00020328,2]
[357502052,1744092642148,-500.0,0.00020329,2]
[357502053,1744092642158,-500.0,0.00020329,2]
[357502054,1744092642167,-500.0,0.00020329,2]
[357502055,1744092642177,-500.0,0.00020329,2]
[357502056,1744092642186,-385.28867663,0.00020329,2]
[357502057,1744092642196,-500.0,0.00020329,2]
[357502058,1744092642205,-500.0,0.00020329,2]
[357502059,1744092642215,-500.0,0.00020329,2]
[357502060,1744092642224,-500.0,0.00020329,2]
[357502061,1744092642234,-500.0,0.00020329,2]
[357502062,1744092642243,-500.0,0.00020329,2]
[357502063,1744092642253,-500.0,0.00020329,2]
[357502064,1744092642262,-500.0,0.00020329,2]
[357502065,1744092642271,-500.0,0.00020329,2]
[357502066,1744092642281,-635.17,0.00020329,2]
[357502067,1744092642291,-500.0,0.00020329,2]
[357502068,1744092642300,-500.0,0.00020329,2]
[357502069,1744092642310,-485.100058,0.00020329,2]
[357502070,1744092642320,-500.0,0.00020329,2]
[357502071,1744092642329,-1511.11,0.00020329,2]
[357502072,1744092642339,-500.0,0.00020329,2]
[357502073,1744092642348,-500.0,0.00020329,2]
[357502074,1744092642358,-500.0,0.00020329,2]
[357502075,1744092642367,-500.0,0.00020329,2]
[357502076,1744092642377,-592.87807968,0.00020329,2]
[357502077,1744092642386,-500.0,0.00020329,2]
[357502078,1744092642396,-500.0,0.00020329,2]
[357502079,1744092642406,-223.12286169,0.00020329,2]
[357502080,1744092642415,-500.0,0.00020329,2]
[357502081,1744092642425,-500.0,0.00020329,2]
[357502082,1744092642434,-500.0,0.00020427,2]
[357502083,1744092642444,-500.0,0.00020427,2]
[357502084,1744092642453,-500.0,0.00020427,2]
[357502085,1744092642463,-500.0,0.00020427,2]
[357502086,1744092642473,-500.0,0.00020427,2]
[357502087,1744092642483,-500.0,0.00020427,2]
[357502088,1744092642493,-292.82331887,0.00020427,2]
[357502089,1744092642505,-500.0,0.00020427,2]
[357502090,1744092642515,-500.0,0.00020427,2]
[357502091,1744092642524,-500.0,0.00020427,2]
[357502092,1744092642534,-500.0,0.00020427,2]
[357502093,1744092642544,-500.0,0.00020427,2]
[357502094,1744092642554,-500.0,0.00020427,2]
[357502095,1744092642564,-500.0,0.00020428,2]
[357502096,1744092642575,-310.2088536,0.00020428,2]
[357502097,1744092642585,-740.4,0.00020428,2]
[357502098,1744092642594,-500.0,0.00020428,2]
[357502099,1744092642604,-500.0,0.0002043,2]
[357502100,1744092642615,-1056.16,0.00020601,2]
[357502101,1744092642624,-500.0,0.00020601,2]
[357502102,1744092642633,-500.0,0.00020602,2]
[357502103,1744092642643,-500.0,0.00020602,2]
[357502104,1744092642652,-1113.32,0.00020602,2]
[357502105,1744092642661,-500.0,0.00020602,2]
[357502106,1744092642671,-500.0,0.00020602,2]
[357502107,1744092642681,-500.0,0.00020602,2]
[357502108,1744092642690,-500.0,0.00020602,2]
[357502109,1744092642699,-530.02,0.00020602,2]
[357502110,1744092642709,-500.0,0.00020602,2]
[357502111,1744092642719,-500.0,0.00020602,2]
[357502112,1744092642728,-500.0,0.00020602,2]
[357502113,1744092642738,-500.0,0.00020602,2]
[357502114,1744092642747,-500.0,0.00020602,2]
[357502115,1744092642757,-500.0,0.00020602,2]
[357502116,1744092642766,-500.0,0.00020603,2]
[357502117,1744092642775,-500.0,0.00020603,2]
[357502118,1744092642785,-500.0,0.00020603,2]
[357502120,1744092642794,-500.0,0.00020603,2]
[357502121,1744092642804,-500.0,0.00020603,2]
[357502122,1744092642822,-180.09193323,0.00020603,2]
[357502123,1744092642832,-500.0,0.00020603,2]
[357502124,1744092642842,-500.0,0.00020603,2]
[357502125,1744092642852,-500.0,0.00020603,2]
[357502126,1744092642863,-500.0,0.00020603,2]
[357502127,1744092642873,-500.0,0.00020603,2]
[357502128,1744092642885,-500.0,0.00020603,2]
[357502129,1744092642899,-500.0,0.00020603,2]
[357502130,1744092642913,-635.17,0.00020603,2]
[357502131,1744092642924,-500.0,0.00020603,2]
[357502132,1744092642936,-500.0,0.00020603,2]
[357502133,1744092642947,-500.0,0.00020603,2]
[357502134,1744092642958,-1511.11,0.00020603,2]
[357502135,1744092642968,-500.0,0.00020603,2]
[357502136,1744092642979,-500.0,0.00020603,2]
[357502137,1744092642989,-500.0,0.00020603,2]
[357502138,1744092642999,-500.0,0.00020603,2]
[357502139,1744092643008,-500.0,0.00020603,2]
[357502140,1744092643018,-500.0,0.00020603,2]
[357502142,1744092643028,-500.0,0.00020603,2]
[357502144,1744092643038,-500.0,0.00020603,2]
[357502145,1744092643048,-500.0,0.00020701,2]
[357502147,1744092643058,-500.0,0.00020701,2]
[357502148,1744092643067,-500.0,0.00020701,2]
[357502149,1744092643078,-500.0,0.00020701,2]
[357502150,1744092643089,-500.0,0.00020701,2]
[357502151,1744092643100,-500.0,0.00020701,2]
[357502152,1744092643111,-500.0,0.00020701,2]
[357502153,1744092643121,-500.0,0.00020701,2]
[357502154,1744092643132,-500.0,0.00020701,2]
[357502155,1744092643142,-606.32,0.00020701,2]
[357502156,1744092643152,-500.0,0.00020701,2]
[357502157,1744092643162,-500.0,0.00020702,2]
[357502158,1744092643173,-740.4,0.00020702,2]
[357502159,1744092643184,-500.0,0.00020702,2]
[357502160,1744092643195,-1056.16,0.00020875,2]
[357502161,1744092643206,-500.0,0.00020875,2]
[357502162,1744092643216,-500.0,0.00020876,2]
[357502163,1744092643227,-1113.32,0.00020876,2]
[357502164,1744092643238,-500.0,0.00020876,2]
[357502165,1744092643248,-500.0,0.00020876,2]
[357502166,1744092643260,-500.0,0.00020876,2]
[357502167,1744092643270,-500.0,0.00020876,2]
[357502168,1744092643280,-530.02,0.00020876,2]
[357502169,1744092643290,-500.0,0.00020876,2]
[357502170,1744092643300,-500.0,0.00020876,2]
[357502171,1744092643310,-500.0,0.00020876,2]
[357502172,1744092643320,-500.0,0.00020876,2]
[357502173,1744092643330,-500.0,0.00020876,2]
[357502174,1744092643339,-500.0,0.00020877,2]
[357502175,1744092643349,-257.0954328,0.00020877,2]
[357502176,1744092643359,-500.0,0.00020877,2]
[357502177,1744092643369,-500.0,0.00020877,2]
[357502178,1744092643379,-500.0,0.00020877,2]
[357502179,1744092643390,-500.0,0.00020877,2]
[357502180,1744092643399,-500.0,0.00020877,2]
[357502181,1744092643409,-500.0,0.00020877,2]
[357502182,1744092643419,-542.16962547,0.00020877,2]
[357502183,1744092643429,-635.17,0.00020877,2]
[357502184,1744092643439,-500.0,0.00020877,2]
[357502185,1744092643448,-500.0,0.00020877,2]
[357502186,1744092643458,-500.0,0.00020877,2]
[357502187,1744092643468,-1511.11,0.00020877,2]
[357502188,1744092643478,-500.0,0.00020877,2]
[357502189,1744092643489,-500.0,0.00020877,2]
[357502190,1744092643501,-500.0,0.00020877,2]
[357502191,1744092643512,-500.0,0.00020877,2]
[357502192,1744092643523,-500.0,0.00020877,2]
[357502193,1744092643535,-500.0,0.00020877,2]
[357502194,1744092643545,-500.0,0.00020877,2]
[357502195,1744092643555,-500.0,0.00020877,2]
[357502196,1744092643564,-500.0,0.00020975,2]
[357502197,1744092643576,-623.34577496,0.00020975,2]
[357502198,1744092643585,-500.0,0.00020975,2]
[357502199,1744092643595,-500.0,0.00020975,2]
[357502200,1744092643605,-500.0,0.00020975,2]
[357502201,1744092643614,-500.0,0.00020975,2]
[357502202,1744092643624,-598.04356968,0.00020975,2]
[357502203,1744092643634,-500.0,0.00020975,2]
[357502204,1744092643643,-500.0,0.00020975,2]
[357502205,1744092643656,-500.0,0.00020976,2]
[357502206,1744092643666,-740.4,0.00020976,2]
[357502207,1744092643675,-500.0,0.00020976,2]
[357502208,1744092643685,-153.92,0.00021,2]
[357502209,1744092643695,-379.58382183,0.00021051,2]
[357502210,1744092643705,-1056.16,0.00021149,2]
[357502211,1744092643715,-500.0,0.00021149,2]
[357502212,1744092643725,-500.0,0.0002115,2]
[357502213,1744092643736,-1113.32,0.0002115,2]
[357502214,1744092643747,-500.0,0.0002115,2]
[357502215,1744092643758,-500.0,0.0002115,2]
[357502217,1744092643768,-500.0,0.0002115,2]
[357502218,1744092643779,-335.87912864,0.0002115,2]
[357502219,1744092643789,-530.02,0.0002115,2]
[357502220,1744092643800,-500.0,0.0002115,2]
[357502221,1744092643810,-500.0,0.0002115,2]
[357502222,1744092643819,-500.0,0.0002115,2]
[357502223,1744092643829,-500.0,0.0002115,2]
[357502224,1744092643839,-500.0,0.0002115,2]
[357502225,1744092643849,-500.0,0.00021151,2]
[357502226,1744092644018,-500.0,0.00021151,2]
[357502227,1744092644028,-500.0,0.00021151,2]
[357502228,1744092644038,-500.0,0.00021151,2]
[357502229,1744092644048,-500.0,0.00021151,2]
[357502230,1744092644059,-500.0,0.00021151,2]
[357502231,1744092644072,-635.17,0.00021151,2]
[357502232,1744092644083,-500.0,0.00021151,2]
[357502233,1744092644092,-500.0,0.00021151,2]
[357502234,1744092644102,-500.0,0.00021151,2]
[357502235,1744092644112,-1511.11,0.00021151,2]
[357502236,1744092644123,-500.0,0.00021151,2]
[357502237,1744092644133,-500.0,0.00021151,2]
[357502238,1744092644143,-500.0,0.00021151,2]
[357502240,1744092644153,-500.0,0.00021151,2]
[357502242,1744092644163,-500.0,0.00021151,2]
[357502243,1744092644174,-500.0,0.00021151,2]
[357502245,1744092644184,-500.0,0.00021151,2]
[357502246,1744092644194,-500.0,0.00021151,2]
[357502247,1744092644204,-500.0,0.00021249,2]
[357502248,1744092644214,-357.8863813,0.00021249,2]
[357502250,1744092644225,-457.84790896,0.00021249,2]
[357502252,1744092644235,-500.0,0.00021249,2]
[357502254,1744092644245,-500.0,0.00021249,2]
[357502255,1744092644256,-500.0,0.00021249,2]
[357502256,1744092644266,-173.0,0.0002125,2]
[357502257,1744092644277,-740.4,0.0002125,2]
[357502258,1744092644287,-500.0,0.0002125,2]
[357502260,1744092644297,-1056.16,0.00021423,2]
[357502262,1744092644307,-500.0,0.00021423,2]
[357502263,1744092644318,-500.0,0.00021424,2]
[357502264,1744092644328,-1113.32,0.00021424,2]
[357502265,1744092644338,-500.0,0.00021424,2]
[357502266,1744092644349,-500.0,0.00021424,2]
[357502268,1744092644359,-500.0,0.00021424,2]
[357502270,1744092644370,-530.02,0.00021424,2]
[357502271,1744092644380,-500.0,0.00021424,2]
[357502272,1744092644391,-500.0,0.00021424,2]
[357502273,1744092644401,-500.0,0.00021424,2]
[357502274,1744092644412,-500.0,0.00021424,2]
[357502275,1744092644423,-500.0,0.00021424,2]
[357502276,1744092644434,-500.0,0.00021425,2]
[357502277,1744092644444,-500.0,0.00021425,2]
[357502278,1744092644454,-500.0,0.00021425,2]
[357502279,1744092644464,-500.0,0.00021425,2]
[357502280,1744092644475,-423.71743139,0.00021425,2]
[357502281,1744092644486,-500.0,0.00021425,2]
[357502282,1744092644498,-635.17,0.00021425,2]
[357502283,1744092644509,-500.0,0.00021425,2]
[357502284,1744092644519,-500.0,0.00021425,2]
[357502285,1744092644529,-500.0,0.00021425,2]
[357502286,1744092644539,-1511.11,0.00021425,2]
[357502287,1744092644549,-500.0,0.00021425,2]
[357502288,1744092644559,-500.0,0.00021425,2]
[357502289,1744092644571,-500.0,0.00021425,2]
[357502290,1744092644581,-500.0,0.00021425,2]
[357502291,1744092644591,-500.0,0.00021425,2]
[357502292,1744092644601,-500.0,0.00021425,2]
[357502293,1744092644611,-500.0,0.00021425,2]
[357502294,1744092644621,-500.0,0.00021425,2]
[357502295,1744092644631,-459.1,0.00021523,2]
[357502296,1744092644641,-500.0,0.00021523,2]
[357502297,1744092644651,-500.0,0.00021523,2]
[357502298,1744092644660,-500.0,0.00021523,2]
[357502299,1744092644670,-740.4,0.00021524,2]
[357502300,1744092644680,-500.0,0.00021524,2]
[357502301,1744092644690,-420.0,0.00021542,2]
[357502302,1744092644700,-1056.16,0.00021697,2]
[357502303,1744092644709,-500.0,0.00021697,2]
[357502304,1744092644719,-500.0,0.00021698,2]
[357502305,1744092644730,-1113.32,0.00021698,2]
[357502306,1744092644740,-500.0,0.00021698,2]
[357502307,1744092644749,-500.0,0.00021698,2]
[357502308,1744092644760,-500.0,0.00021698,2]
[357502309,1744092644769,-530.02,0.00021698,2]
[357502310,1744092644779,-500.0,0.00021698,2]
[357502311,1744092644789,-500.0,0.00021698,2]
[357502312,1744092644799,-500.0,0.00021698,2]
[357502313,1744092644809,-500.0,0.00021698,2]
[357502314,1744092644819,-500.0,0.00021698,2]
[357502315,1744092644828,-500.0,0.00021699,2]
[357502316,1744092644838,-500.0,0.00021699,2]
[357502317,1744092644848,-500.0,0.00021699,2]
[357502318,1744092644858,-500.0,0.00021699,2]
[357502319,1744092644867,-313.73138516,0.00021699,2]
[357502320,1744092644877,-635.17,0.00021699,2]
[357502321,1744092644886,-500.0,0.00021699,2]
[357502322,1744092644896,-500.0,0.00021699,2]
[357502323,1744092644905,-500.0,0.00021699,2]
[357502324,1744092644915,-1511.11,0.00021699,2]
[357502325,1744092644924,-500.0,0.00021699,2]
[357502326,1744092644934,-500.0,0.00021699,2]
[357502327,1744092644943,-500.0,0.00021699,2]
[357502328,1744092644953,-500.0,0.00021699,2]
[357502329,1744092644962,-500.0,0.00021699,2]
[357502330,1744092644972,-500.0,0.00021699,2]
[357502331,1744092644981,-500.0,0.00021699,2]
[357502332,1744092644991,-500.0,0.00021699,2]
[357502333,1744092645000,-837.41003169,0.00021708,2]
[357502334,1744092645011,-160.0,0.00021708,2]
[357502335,1744092645021,-160.0,0.00021708,2]
[357502336,1744092645030,-160.0,0.00021708,2]
[357502337,1744092645040,-419.46366559,0.00021708,2]
[357502338,1744092645050,-12530.86563381,0.00021708,2]
[357502339,1744092645060,-511.96,0.00021797,2]
[357502340,1744092645070,-500.0,0.00021797,2]
[357502341,1744092645080,-500.0,0.00021797,2]
[357502342,1744092645089,-740.4,0.00021798,2]
[357502343,1744092645100,-500.0,0.00021798,2]
[357502344,1744092645110,-200.0,0.00021917,2]
[357502345,1744092645120,-269.5895386,0.00021918,2]
[357502346,1744092645130,-1056.16,0.00021971,2]
[357502347,1744092645141,-500.0,0.00021971,2]
[357502348,1744092645152,-500.0,0.00021972,2]
[357502349,1744092645162,-1113.32,0.00021972,2]
[357502350,1744092645172,-500.0,0.00021972,2]
[357502351,1744092645182,-500.0,0.00021972,2]
[357502352,1744092645192,-500.0,0.00021972,2]
[357502353,1744092645202,-530.02,0.00021972,2]
[357502354,1744092645212,-500.0,0.00021972,2]
[357502355,1744092645222,-500.0,0.00021972,2]
[357502356,1744092645232,-500.0,0.00021972,2]
[357502357,1744092645242,-500.0,0.00021972,2]
[357502358,1744092645252,-500.0,0.00021972,2]
[357502359,1744092645264,-500.0,0.00021973,2]
[357502360,1744092645274,-500.0,0.00021973,2]
[357502361,1744092645283,-500.0,0.00021973,2]
[357502362,1744092645293,-500.0,0.00021973,2]
[357502363,1744092645303,-635.17,0.00021973,2]
[357502364,1744092645313,-500.0,0.00021973,2]
[357502365,1744092645323,-160.9010492,0.00021973,2]
[357502366,1744092645333,-500.0,0.00021973,2]
[357502367,1744092645343,-1511.11,0.00021973,2]
[357502368,1744092645353,-500.0,0.00021973,2]
[357502369,1744092645363,-500.0,0.00021973,2]
[357502370,1744092645373,-500.0,0.00021973,2]
[357502371,1744092645383,-500.0,0.00021973,2]
[357502372,1744092645392,-500.0,0.00021973,2]
[357502373,1744092645402,-500.0,0.00021973,2]
[357502374,1744092645411,-500.0,0.00021973,2]
[357502375,1744092645421,-500.0,0.00021973,2]
[357502376,1744092645431,-500.0,0.00022071,2]
[357502377,1744092645441,-272.7456666,0.00022071,2]
[357502378,1744092645451,-740.4,0.00022072,2]
[357502379,1744092645461,-500.0,0.00022072,2]
[357502380,1744092645471,-1056.16,0.00022245,2]
[357502381,1744092645481,-500.0,0.00022245,2]
[357502382,1744092645491,-500.0,0.00022246,2]
[357502383,1744092645505,-1113.32,0.00022246,2]
[357502384,1744092645516,-500.0,0.00022246,2]
[357502385,1744092645525,-500.0,0.00022246,2]
[357502386,1744092645535,-500.0,0.00022246,2]
[357502387,1744092645546,-530.02,0.00022246,2]
[357502388,1744092645556,-500.0,0.00022246,2]
[357502389,1744092645566,-500.0,0.00022246,2]
[357502390,1744092645577,-500.0,0.00022246,2]
[357502391,1744092645587,-500.0,0.00022246,2]
[357502392,1744092645597,-500.0,0.00022246,2]
[357502393,1744092645607,-500.0,0.00022247,2]
[357502394,1744092645617,-500.0,0.00022247,2]
[357502395,1744092645627,-500.0,0.00022247,2]
[357502396,1744092645636,-398.15941568,0.00022247,2]
[357502397,1744092645646,-635.17,0.00022247,2]
[357502398,1744092645656,-500.0,0.00022247,2]
[357502399,1744092645666,-487.74272621,0.00022247,2]